fUSD/lending_fUSD_20260701
["ID","MTS","AMOUNT","RATE_DAILY","PERIOD"]
[426814504,1782873034000,-58.41659343,0.0001434,2]
[426814505,1782873034000,-3592.58340657,0.0001434,2]
[426814506,1782873034000,-312.31,0.00014428,2]
[426814507,1782873034000,-500.0,0.00014503,2]
[426814509,1782873034000,-172.60026164,0.00014503,2]
[426814512,1782873034000,-499.50294632,0.00014504,2]
[426814511,1782873034000,-4312.37374656,0.00014504,2]
[426814463,1782873034000,-151.0,0.00014323,2]
[426814508,1782873034000,-174.57262312,0.00014503,2]
[426814493,1782873034000,-906.0,0.00014323,2]
[426814491,1782873034000,-887.0,0.00014323,2]
[426814496,1782873034000,-425.60553485,0.00014329,2]
[426814474,1782873034000,-153.0,0.00014323,2]
[426814482,1782873034000,-895.0,0.00014323,2]
[426814478,1782873034000,-151.0,0.00014323,2]
[426814480,1782873034000,-912.0,0.00014323,2]
[426814476,1782873034000,-151.0,0.00014323,2]
[426814494,1782873034000,-884.0,0.00014323,2]
[426814469,1782873034000,-151.0,0.00014323,2]
[426814484,1782873034000,-152.0,0.00014323,2]
[426814465,1782873034000,-153.0,0.00014323,2]
[426814485,1782873034000,-153.0,0.00014323,2]
[426814488,1782873034000,-151.0,0.00014323,2]
[426814499,1782873034000,-284.0,0.0001434,2]
[426814498,1782873034000,-250.0,0.00014329,2]
[426814487,1782873034000,-906.0,0.00014323,2]
[426814489,1782873034000,-916.0,0.00014323,2]
[426814492,1782873034000,-191.22772144,0.00014323,2]
[426814471,1782873034000,-150.0,0.00014323,2]
[426814615,1782873040000,-151.0,0.00014704,2]
[426814603,1782873040000,-776.92676941,0.00014504,2]
[426814604,1782873040000,-1593.68533905,0.00014504,2]
[426814606,1782873040000,-2868.1921068,0.00014552,2]
[426814607,1782873040000,-11135.97659608,0.00014552,2]
[426814608,1782873040000,-1012.61300777,0.00014552,2]
[426814609,1782873040000,-598.33605315,0.00014552,2]
[426814613,1782873040000,-156.929762,0.00014704,2]
[426814605,1782873040000,-17608.93319866,0.00014504,2]
[426814611,1782873040000,-312.31,0.00014645,2]
[426814616,1782873040000,-151.0,0.00014704,2]
[426814617,1782873040000,-602.24854385,0.000148,5]
[426814620,1782873040000,-2013.24854385,0.00014887,2]
[426814619,1782873040000,-200.0,0.0001488,2]
[426814610,1782873040000,-300.0,0.000146,5]
[426814621,1782873040000,-1844.09,0.00014887,2]
[426814612,1782873040000,-600.0,0.000147,5]
[426814614,1782873040000,-158.450641,0.00014704,2]
[426814618,1782873040000,-297.75145615,0.000148,5]
[426814636,1782873046000,-59.52175378,0.000149,5]
[426814634,1782873046000,-2844.2235632,0.00014892,2]
[426814635,1782873046000,-161.39366825,0.000149,2]
[426814633,1782873046000,-2832.48628003,0.00014887,2]
[426814638,1782873174000,155.0,0.00028526,30]
[426814639,1782873176000,155.0,0.00029526,30]
[426814640,1782873194000,162.0,0.00028526,30]
[426814641,1782873195000,166.0,0.00029526,30]
[426814642,1782873228000,362.0,0.00028526,30]
[426814643,1782873229000,362.0,0.00029526,30]
[426814644,1782873257000,1257.39,0.00030137,30]
[426814646,1782873307000,168.4032814,0.00028526,30]
[426814647,1782873325000,156.0,0.00028526,30]
[426814648,1782873327000,162.06504843,0.00029526,30]
[426814649,1782873496000,5506.45168817,0.0003013,30]
[426814650,1782873756000,166.66,0.0001279,2]
[426814651,1782873810000,152.55696,0.0002802,120]
[426814653,1782873985000,175.57531398,0.00012282,2]
[426814652,1782873985000,309.91641427,0.00012756,2]
[426814654,1782874032000,171.00765924,0.00012282,2]
[426814655,1782874044000,1249.39133725,0.00013,2]
[426814656,1782874050000,163.93084424,0.0003,30]
[426814657,1782874088000,151.0,0.00028526,30]
[426814658,1782874089000,151.0,0.00029526,30]
[426814659,1782874114000,152.0,0.00028526,30]
[426814660,1782874116000,152.0,0.00029526,30]
[426814661,1782874157000,200.0,0.00030137,30]
[426814681,1782874233000,-500.0,0.00013081,2]
[426814677,1782874233000,-500.0,0.00013081,2]
[426814676,1782874233000,-193.74059911,0.00013081,2]
[426814675,1782874233000,-500.0,0.00013081,2]
[426814678,1782874233000,-531.68645138,0.00013081,2]
[426814673,1782874233000,-408.24239897,0.00013081,2]
[426814684,1782874233000,-500.0,0.00013081,2]
[426814669,1782874233000,-252.76655104,0.00013064,2]
[426814680,1782874233000,-500.0,0.00013081,2]
[426814672,1782874233000,-150.0,0.0001308,2]
[426814671,1782874233000,-167.46,0.0001307,2]
[426814679,1782874233000,-500.0,0.00013081,2]
[426814670,1782874233000,-150.0,0.0001307,2]
[426814667,1782874233000,-158.95309333,0.00013052,2]
[426814668,1782874233000,-166.66,0.00013059,2]
[426814674,1782874233000,-169.08791257,0.00013081,2]
[426814685,1782874233000,-500.0,0.00013081,2]
[426814688,1782874233000,-202.0,0.00013212,2]
[426814682,1782874233000,-500.0,0.00013081,2]
[426814693,1782874233000,-538.09,0.00013556,2]
[426814700,1782874233000,-776.27498581,0.00013947,2]
[426814702,1782874233000,-1441.23624635,0.00013947,2]
[426814699,1782874233000,-166.66,0.00013867,2]
[426814698,1782874233000,-910.41,0.00013708,2]
[426814696,1782874233000,-358.15,0.00013641,2]
[426814697,1782874233000,-200.0,0.00013699,2]
[426814694,1782874233000,-166.66,0.00013598,2]
[426814701,1782874233000,-2000.0,0.00013947,2]
[426814690,1782874233000,-166.66,0.00013328,2]
[426814687,1782874233000,-150.0,0.00013131,2]
[426814691,1782874233000,-150.0,0.00013512,2]
[426814689,1782874233000,-1257.43,0.00013237,2]
[426814686,1782874233000,-46975.63,0.00013082,2]
[426814692,1782874233000,-167.14,0.00013547,2]
[426814683,1782874233000,-500.0,0.00013081,2]
[426814695,1782874233000,-692.58,0.00013598,2]
[426814714,1782874234000,-92.76140272,0.00014365,2]
[426814725,1782874234000,-3566.0,0.00014479,2]
[426814715,1782874234000,-600.0,0.00014365,2]
[426814726,1782874234000,-1277.088,0.00014479,2]
[426814708,1782874234000,-166.66,0.00014136,2]
[426814710,1782874234000,-500.0,0.00014192,2]
[426814707,1782874234000,-668.57247674,0.00014014,2]
[426814709,1782874234000,-183.65,0.00014169,2]
[426814713,1782874234000,-209.65092978,0.00014365,2]
[426814706,1782874234000,-3044.63975341,0.00013947,2]
[426814704,1782874234000,-760.3859301,0.00013947,2]
[426814705,1782874234000,-8886.39628433,0.00013947,2]
[426814703,1782874234000,-700.0,0.00013947,2]
[426814716,1782874234000,-600.0,0.00014365,2]
[426814711,1782874234000,-255.0,0.00014192,2]
[426814720,1782874234000,-250.0,0.00014365,2]
[426814712,1782874234000,-913.0,0.00014344,2]
[426814719,1782874234000,-200.42489203,0.00014365,2]
[426814732,1782874234000,-503.99971624,0.00014479,2]
[426814735,1782874234000,-150.99,0.00014504,2]
[426814733,1782874234000,-9999.99,0.00014504,2]
[426814734,1782874234000,-4999.99,0.00014504,2]
[426814721,1782874234000,-151.0,0.00014478,2]
[426814731,1782874234000,-216.517,0.00014479,2]
[426814737,1782874234000,-1254.41808677,0.00014504,2]
[426814736,1782874234000,-1740.09613907,0.00014504,2]
[426814730,1782874234000,-935.0,0.00014479,2]
[426814727,1782874234000,-283.0,0.00014479,2]
[426814728,1782874234000,-1362.0,0.00014479,2]
[426814723,1782874234000,-166.495239,0.00014479,2]
[426814724,1782874234000,-163.942912,0.00014479,2]
[426814722,1782874234000,-150.0,0.00014478,2]
[426814717,1782874234000,-600.0,0.00014365,2]
[426814718,1782874234000,-266.29223824,0.00014365,2]
[426814729,1782874234000,-1231.0,0.00014479,2]
[426814749,1782874238000,-2928.53577416,0.00014504,2]
[426814750,1782874238000,-1626.39422584,0.00014504,2]
[426814752,1782874238000,-561.74,0.00014504,2]
[426814751,1782874238000,-915.03577416,0.00014504,2]
[426814753,1782874238000,-9999.99,0.00014504,2]
[426814754,1782874238000,-9999.99,0.00014504,2]
[426814755,1782874238000,-4958.8580203,0.00014552,2]
[426814756,1782874238000,-103627.83713811,0.00014552,2]
[426814760,1782874238000,-755.80129852,0.00014552,2]
[426814758,1782874238000,-451.7681818,0.00014552,2]
[426814759,1782874238000,-419.77145993,0.00014552,2]
[426814761,1782874238000,-9442.79049806,0.00014552,2]
[426814763,1782874238000,-559.1049869,0.00014552,2]
[426814765,1782874238000,-167.14,0.00014665,2]
[426814762,1782874238000,-999.73791994,0.00014552,2]
[426814766,1782874238000,-110.38490314,0.000147,5]
[426814764,1782874238000,-200.0,0.000146,5]
[426814757,1782874238000,-271.86470374,0.00014552,2]
[426814778,1782874240000,-151.0,0.00014865,2]
[426814780,1782874240000,-2066.1908418,0.00014892,2]
[426814781,1782874240000,-1983.980274,0.00014892,2]
[426814770,1782874240000,-500.0,0.0001474,2]
[426814773,1782874240000,-700.0,0.000148,5]
[426814774,1782874240000,-247.51,0.00014865,2]
[426814776,1782874240000,-280.65,0.00014865,2]
[426814777,1782874240000,-152.46,0.00014865,2]
[426814772,1782874240000,-207.77486846,0.000148,2]
[426814771,1782874240000,-2500.0,0.00014792,2]
[426814769,1782874240000,-389.61509686,0.000147,5]
[426814775,1782874240000,-151.28,0.00014865,2]
[426814782,1782874240000,-9080.37604949,0.00014892,2]
[426814779,1782874240000,-200.0,0.0001488,2]
[426814788,1782874240000,-1685.48334253,0.000149,2]
[426814784,1782874240000,-2454.7962235,0.00014892,2]
[426814794,1782874240000,-2419.26440846,0.00014981,2]
[426814795,1782874240000,-293.00302424,0.0001499,2]
[426814797,1782874240000,-500.0,0.00014999,2]
[426814793,1782874240000,-547.7390744,0.00014968,2]
[426814796,1782874240000,-500.0,0.00014999,2]
[426814786,1782874240000,-1000.0,0.000149,5]
[426814791,1782874240000,-826.4763367,0.00014968,2]
[426814785,1782874240000,-2000.0,0.000149,2]
[426814787,1782874240000,-8425.79751608,0.000149,2]
[426814792,1782874240000,-5253.8820936,0.00014968,2]
[426814783,1782874240000,-12481.90963241,0.00014892,2]
[426814789,1782874240000,-174.95589388,0.000149,2]
[426814790,1782874240000,-221.77,0.00014963,2]
[426814804,1782874241000,-33275.00617706,0.00015,2]
[426814803,1782874241000,-43682.18452179,0.00015,2]
[426814802,1782874241000,-18916.34923866,0.00015,2]
[426814798,1782874241000,-441.09196704,0.00014999,2]
[426814801,1782874241000,-1675.0,0.00015,5]
[426814799,1782874241000,-1731.0,0.00015,5]
[426814800,1782874241000,-1573.0,0.00015,5]
[426814865,1782874250000,-726.87529829,0.00014489,2]
[426814869,1782874255000,200.0,0.00030137,30]
[426814870,1782874294000,291.65,0.00030107,30]
[426814872,1782874306000,150.0,0.00029,30]
[426814871,1782874306000,326.0,0.00028526,30]
[426814873,1782874307000,326.0,0.00029526,30]
[426814874,1782874346000,164.42,0.0002863,30]
[426814875,1782874347000,164.42,0.00029195,30]
[426814876,1782874348000,164.42,0.0002976,30]
[426814878,1782874436000,200.67,0.00030137,30]
[426814891,1782875014000,230.71260253,0.00030136,120]
[426814897,1782875168000,363.146752,7.945e-05,2]
[426814898,1782875183000,152.0,0.00028525,30]
[426814899,1782875185000,152.0,0.00029525,30]
[426814900,1782875210000,152.0,0.00028525,30]
[426814901,1782875212000,152.0,0.00029525,30]
[426814903,1782875221000,185.78335684,0.000278,30]
[426814905,1782875250000,380.40768385,0.0001,2]
[426814906,1782875401000,293.0,0.00028525,30]
[426814907,1782875402000,293.0,0.00029525,30]
[426814924,1782875432000,-287.96588426,0.00013294,2]
[426814921,1782875432000,-298.5,0.00013178,2]
[426814920,1782875432000,-166.66,0.00013062,2]
[426814923,1782875432000,-830.80761298,0.00013294,2]
[426814925,1782875432000,-36.22511594,0.00013722,2]
[426814926,1782875432000,-416.92488406,0.00013722,2]
[426814922,1782875432000,-379.90650276,0.00013294,2]
[426814930,1782875432000,-171.03,0.00013775,2]
[426814928,1782875432000,-150.68,0.00013746,2]
[426814933,1782875432000,-578.54437829,0.00014044,2]
[426814931,1782875432000,-1854.17,0.00013859,2]
[426814927,1782875432000,-346.29,0.00013732,2]
[426814932,1782875432000,-151.0,0.00014044,2]
[426814929,1782875432000,-200.0,0.00013749,2]
[426815002,1782875438000,-1081.04562171,0.00014044,2]
[426815004,1782875438000,-150.99,0.00014044,2]
[426815003,1782875438000,-8326.69,0.00014044,2]
[426815007,1782875438000,-449.3404125,0.00014044,2]
[426815006,1782875438000,-678.76931747,0.00014044,2]
[426815008,1782875438000,-503.31617516,0.00014044,2]
[426815009,1782875438000,-20.75883928,0.00014044,2]
[426815010,1782875438000,-757.99116072,0.00014044,2]
[426815005,1782875438000,-1639.60409487,0.00014044,2]
[426815016,1782875438000,-300.19359053,0.00014438,2]
[426815011,1782875438000,-9999.99,0.00014044,2]
[426815013,1782875438000,-3169.58116072,0.00014141,2]
[426815014,1782875438000,-3651.0,0.00014141,2]
[426815017,1782875438000,-199.80640947,0.00014438,2]
[426815015,1782875438000,-166.66,0.00014437,2]
[426815019,1782875438000,-58.50192373,0.00014487,2]
[426815018,1782875438000,-171.03,0.00014464,2]
[426815012,1782875438000,-2919.41883928,0.00014141,2]
[426815042,1782875440000,-906.0,0.00014489,2]
[426815043,1782875440000,-917.0,0.00014489,2]
[426815041,1782875440000,-151.0,0.00014489,2]
[426815039,1782875440000,-898.0,0.00014489,2]
[426815037,1782875440000,-151.0,0.00014489,2]
[426815038,1782875440000,-150.0,0.00014489,2]
[426815033,1782875440000,-485.61841937,0.00014488,2]
[426815029,1782875440000,-151.0,0.00014488,2]
[426815034,1782875440000,-285.76967928,0.00014488,2]
[426815032,1782875440000,-153.0,0.00014488,2]
[426815045,1782875440000,-886.0,0.00014489,2]
[426815030,1782875440000,-150.0,0.00014488,2]
[426815028,1782875440000,-152.0,0.00014488,2]
[426815027,1782875440000,-503.52071682,0.00014487,2]
[426815026,1782875440000,-91.49807627,0.00014487,2]
[426815036,1782875440000,-151.0,0.00014489,2]
[426815040,1782875440000,-895.0,0.00014489,2]
[426815031,1782875440000,-150.0,0.00014488,2]
[426815048,1782875440000,-150.0,0.00014489,2]
[426815046,1782875440000,-907.0,0.00014489,2]
[426815063,1782875440000,-152.0,0.00014552,2]
[426815061,1782875440000,-1231.0,0.00014489,2]
[426815058,1782875440000,-3566.0,0.00014489,2]
[426815059,1782875440000,-283.0,0.00014489,2]
[426815060,1782875440000,-1362.0,0.00014489,2]
[426815062,1782875440000,-634.6320593,0.00014552,2]
[426815057,1782875440000,-150.0,0.00014489,2]
[426815055,1782875440000,-151.0,0.00014489,2]
[426815035,1782875440000,-150.0,0.00014488,2]
[426815047,1782875440000,-708.00415992,0.00014489,2]
[426815049,1782875440000,-153.0,0.00014489,2]
[426815044,1782875440000,-151.0,0.00014489,2]
[426815051,1782875440000,-152.0,0.00014489,2]
[426815056,1782875440000,-150.0,0.00014489,2]
[426815050,1782875440000,-151.0,0.00014489,2]
[426815053,1782875440000,-151.0,0.00014489,2]
[426815054,1782875440000,-152.0,0.00014489,2]
[426815052,1782875440000,-302.07447855,0.00014489,2]
[426815086,1782875441000,-195.3353495,0.0001499,2]
[426815080,1782875441000,-3731.75591048,0.000149,2]
[426815076,1782875441000,-151.0,0.00014865,2]
[426815084,1782875441000,-158.95309332,0.0001497,2]
[426815081,1782875441000,-7583.21776449,0.000149,2]
[426815078,1782875441000,-151.0,0.00014868,2]
[426815074,1782875441000,-185.33,0.00014865,2]
[426815073,1782875441000,-432.2081915,0.00014762,2]
[426815068,1782875441000,-651.77965558,0.00014671,2]
[426815070,1782875441000,-2964.9576674,0.00014762,2]
[426815071,1782875441000,-999.7379199,0.00014762,2]
[426815067,1782875441000,-369.46477411,0.00014671,2]
[426815079,1782875441000,-200.0,0.0001488,2]
[426815069,1782875441000,-1108.1076508,0.00014762,2]
[426815065,1782875441000,-4918.6881075,0.0001463,2]
[426815066,1782875441000,-260.81314635,0.00014666,2]
[426815064,1782875441000,-13699.1618925,0.0001463,2]
[426815072,1782875441000,-8011.9834724,0.00014762,2]
[426815083,1782875441000,-210.68,0.00014946,2]
[426815077,1782875441000,-644.48,0.00014865,2]
[426815082,1782875441000,-1787.7151553,0.00014939,2]
[426815102,1782875441000,187.42,0.00030136,30]
[426815101,1782875441000,-271.78,0.00015,2]
[426815100,1782875441000,-1800.0,0.00015,2]
[426815099,1782875441000,-261929.8462462,0.00015,2]
[426815098,1782875441000,-240.59,0.00015,2]
[426815097,1782875441000,-263.99,0.00015,2]
[426815096,1782875441000,-140491.45514831,0.00015,2]
[426815075,1782875441000,-173.66,0.00014865,2]
[426815093,1782875441000,-429.8990304,0.00015,2]
[426815095,1782875441000,-286.14,0.00015,2]
[426815094,1782875441000,-150.0,0.00015,2]
[426815091,1782875441000,-2699100.46782395,0.00015,2]
[426815092,1782875441000,-85939.78016961,0.00015,2]
[426815089,1782875441000,-1343.0,0.00015,5]
[426815087,1782875441000,-195.3353495,0.0001499,2]
[426815088,1782875441000,-572.12747038,0.00014999,2]
[426815085,1782875441000,-398.8931689,0.00014979,2]
[426815090,1782875441000,-1074.0,0.00015,5]
[426815108,1782875446000,-6688.4445456,0.00015,2]
[426815110,1782875447000,-992.8782551,0.00015,2]
[426815109,1782875447000,-892.53740751,0.00015,2]
[426815114,1782875447000,-1479.82,0.00015,2]
[426815116,1782875447000,-1637.27103503,0.00015,2]
[426815113,1782875447000,-577.0,0.00015,2]
[426815112,1782875447000,-743.06612249,0.00015,2]
[426815115,1782875447000,-49598.76719865,0.00015,2]
[426815134,1782875449000,-334.95766743,0.00015,2]
[426815133,1782875449000,-158066.13283919,0.00015,2]
[426815132,1782875449000,-935.0,0.0001459,2]
[426815135,1782875486000,187.42,0.00030136,30]
[426815137,1782875536000,-801.61,0.00014641,2]
[426815136,1782875536000,-279.39,0.00013699,2]
[426815139,1782875832000,1279.3702821,0.00030137,30]
[426815146,1782876008000,578.839983,7.945e-05,2]
[426815147,1782876164000,253.19,0.0002863,30]
[426815148,1782876165000,253.19,0.00029132,30]
[426815149,1782876166000,253.19,0.00029634,30]
[426815150,1782876167000,253.25,0.00030136,30]
[426815151,1782876176000,165.43,0.0002863,30]
[426815152,1782876177000,165.43,0.00029383,30]
[426815153,1782876247000,164.93,0.0002863,30]
[426815154,1782876265000,153.0,0.00028515,30]
[426815155,1782876283000,164.72,0.0002863,30]
[426815156,1782876287000,152.0,0.00028515,30]
[426815157,1782876288000,158.0,0.00029515,30]
[426815161,1782876306000,152.43736073,0.00030136,30]
[426815164,1782876355000,164.81,0.0002863,30]
[426815165,1782876358000,174.0,0.00011373,2]
[426815168,1782876410000,800.0,0.00030136,30]
[426815169,1782876431000,165.0,0.0002863,30]
[426815170,1782876437000,500.0,0.00013,2]
[426815171,1782876480000,264.0,0.00028515,30]
[426815172,1782876482000,264.0,0.00029515,30]
[426815173,1782876506000,164.91,0.0002863,30]
[426815174,1782876529000,500.0,0.00030136,30]
[426815175,1782876530000,585.200094,0.00030136,30]
[426815176,1782876565000,164.88,0.0002863,30]
[426815192,1782876631000,-150.0,0.0001464,2]
[426815184,1782876631000,-150.0,0.00013972,2]
[426815193,1782876631000,-283.0,0.00014641,2]
[426815191,1782876631000,-2345.64,0.0001453,2]
[426815180,1782876631000,-279.39,0.00013699,2]
[426815182,1782876631000,-496.44339428,0.00013699,2]
[426815181,1782876631000,-37.03660572,0.00013699,2]
[426815179,1782876631000,-166.66,0.00013667,2]
[426815183,1782876631000,-150.0,0.00013835,2]
[426815185,1782876631000,-161.96,0.00014397,2]
[426815187,1782876631000,-173.14,0.00014417,2]
[426815190,1782876631000,-1081.04,0.0001453,2]
[426815199,1782876631000,-1817.49155921,0.00014641,2]
[426815197,1782876631000,-637.5172153,0.00014641,2]
[426815198,1782876631000,-1408.75480008,0.00014641,2]
[426815196,1782876631000,-450.0,0.00014641,2]
[426815186,1782876631000,-362.52,0.00014416,2]
[426815195,1782876631000,-143.4827847,0.00014641,2]
[426815188,1782876631000,-160.87,0.00014475,2]
[426815189,1782876631000,-167.46,0.0001453,2]
[426815194,1782876631000,-1362.0,0.00014641,2]
[426815216,1782876636000,164.86,0.0002863,30]
[426815267,1782876637000,-402.00835186,0.00014641,2]
[426815266,1782876637000,-883.35754005,0.00014641,2]
[426815257,1782876637000,-419.17316,0.00014641,2]
[426815514,1782876646000,-2094.79061983,0.00014641,2]
[426815513,1782876646000,-1158.2145888,0.00014641,2]
[426815512,1782876646000,-445.17668533,0.000142,2]
[426815517,1782876659000,283.43018,0.00030135,120]
[426815518,1782876682000,164.93,0.0002863,30]
[426815519,1782876691000,164.92,0.0002863,30]
[426815520,1782876697000,164.86,0.0002863,30]
[426815521,1782876770000,164.92,0.0002863,30]
[426815526,1782876894000,400.0,0.00027397,30]
[426815530,1782876931000,180.38061514,0.00012946,2]
[426815532,1782877030000,970.094184,0.0001235,2]
[426815537,1782877138000,218.23,0.00013,2]
[426815542,1782877534000,237.0,0.00028516,30]
[426815543,1782877535000,237.0,0.00029516,30]
[426815544,1782877741000,2000.0,0.00030134,120]
[426815545,1782877741000,2000.0,0.00029515,30]
[426815556,1782877831000,-62.56241275,0.00013224,2]
[426815549,1782877831000,-486.90471485,0.00013046,2]
[426815551,1782877831000,-250.0,0.00013046,2]
[426815552,1782877831000,-250.0,0.00013173,2]
[426815550,1782877831000,-2207.90510865,0.00013046,2]
[426815554,1782877831000,-644.64,0.00013224,2]
[426815555,1782877831000,-582.07758725,0.00013224,2]
[426815559,1782877831000,-300.18,0.00013698,2]
[426815557,1782877831000,-173.14,0.00013562,2]
[426815560,1782877831000,-209.9,0.00013899,2]
[426815558,1782877831000,-290.01,0.00013575,2]
[426815561,1782877831000,-17.92415487,0.00013977,2]
[426815562,1782877831000,-387.105,0.00013977,2]
[426815564,1782877831000,-320.124,0.00013977,2]
[426815553,1782877831000,-200.0,0.00013175,2]
[426815563,1782877831000,-300.0,0.00013977,2]
[426815580,1782877832000,-150.0,0.00014044,2]
[426815578,1782877832000,-500.0,0.00014044,2]
[426815595,1782877832000,-500.0,0.00014044,2]
[426815597,1782877832000,-500.0,0.00014044,2]
[426815613,1782877832000,-196.40486869,0.00014046,2]
[426815601,1782877832000,-500.0,0.00014044,2]
[426815577,1782877832000,-500.0,0.00014044,2]
[426815607,1782877832000,-151.0,0.00014046,2]
[426815615,1782877832000,-151.0,0.00014046,2]
[426815603,1782877832000,-185.33,0.00014046,2]
[426815599,1782877832000,-500.0,0.00014044,2]
[426815593,1782877832000,-500.0,0.00014044,2]
[426815586,1782877832000,-500.0,0.00014044,2]
[426815584,1782877832000,-500.0,0.00014044,2]
[426815588,1782877832000,-500.0,0.00014044,2]
[426815575,1782877832000,-500.0,0.00014044,2]
[426815582,1782877832000,-500.0,0.00014044,2]
[426815573,1782877832000,-500.0,0.00014044,2]
[426815571,1782877832000,-500.0,0.00014044,2]
[426815568,1782877832000,-171.01720583,0.00014044,2]
[426815565,1782877832000,-546.276,0.00013977,2]
[426815567,1782877832000,-150.0,0.00014043,2]
[426815566,1782877832000,-340.23084513,0.00013977,2]
[426815605,1782877832000,-151.0,0.00014046,2]
[426815590,1782877832000,-500.0,0.00014044,2]
[426815609,1782877832000,-150.0,0.00014046,2]
[426815569,1782877832000,-500.0,0.00014044,2]
[426815617,1782877832000,-644.72,0.00014046,2]
[426815646,1782877832000,-585.68234826,0.00014842,2]
[426815645,1782877832000,-1088.95907059,0.00014842,2]
[426815641,1782877832000,-150.174,0.00014669,2]
[426815637,1782877832000,-284.0,0.00014669,2]
[426815644,1782877832000,-250.0,0.00014669,2]
[426815635,1782877832000,-3566.0,0.00014669,2]
[426815638,1782877832000,-1362.0,0.00014669,2]
[426815636,1782877832000,-1278.0,0.00014669,2]
[426815642,1782877832000,-151.0,0.00014669,2]
[426815639,1782877832000,-1231.0,0.00014669,2]
[426815643,1782877832000,-6089.0,0.00014669,2]
[426815640,1782877832000,-250.0,0.00014669,2]
[426815634,1782877832000,-168.55,0.00014665,2]
[426815629,1782877832000,-153.0,0.00014641,2]
[426815633,1782877832000,-243.01,0.00014645,2]
[426815630,1782877832000,-151.0,0.00014641,2]
[426815632,1782877832000,-150.0,0.00014641,2]
[426815621,1782877832000,-209.9,0.00014247,2]
[426815626,1782877832000,-250.0,0.00014351,2]
[426815627,1782877832000,-209.9,0.00014594,2]
[426815628,1782877832000,-151.0,0.00014641,2]
[426815625,1782877832000,-300.0,0.00014351,2]
[426815624,1782877832000,-150.28948345,0.00014351,2]
[426815623,1782877832000,-578.37949069,0.00014351,2]
[426815611,1782877832000,-151.0,0.00014046,2]
[426815631,1782877832000,-153.0,0.00014641,2]
[426815618,1782877832000,-425.160269,0.000142,2]
[426815653,1782877839000,-200.0,0.0001488,2]
[426815650,1782877839000,-216.0,0.00014669,2]
[426815651,1782877839000,-1683.9389006,0.00014842,2]
[426815654,1782877839000,-155.27549739,0.000149,2]
[426815655,1782877839000,-776.9268,0.000149,2]
[426815652,1782877839000,-570.68,0.00014856,2]
[426815658,1782877840000,-625.37901908,0.00014928,2]
[426815657,1782877840000,-3540.52153308,0.00014928,2]
[426815656,1782877840000,-2310.69993088,0.00014928,2]
[426815665,1782877844000,-209.9,0.00014942,2]
[426815664,1782877844000,-110008.81531176,0.00014928,2]
[426815667,1782877844000,-102260.11621277,0.00015,2]
[426815666,1782877844000,-31255.69394159,0.00015,2]
[426815669,1782877844000,-151.0,0.00015,2]
[426815668,1782877844000,-151.0,0.00015,2]
[426815670,1782877844000,-153.0,0.00015,2]
[426815671,1782877844000,-152.0,0.00015,2]
[426815672,1782877844000,-150.0,0.00015,2]
[426815676,1782877844000,-255.0,0.00015167,2]
[426815675,1782877844000,-1640.54905613,0.00015067,2]